[Event "Titled Tuesday Blitz May 03 Early 2022"]
[White "Sokolovsky, Yahli"]
[Black "Lorparizangeneh, Shahin"]
[WhiteFideId "2820242"]
[BlackFideId "12521604"]
[WhiteElo "1770"]
[BlackElo "2525"]
[Result "0-1"]
[Round "05"]
[TimeControl "180+1"]
[Date "2022.05.03"]
[WhiteClock "0:00:02"]
[BlackClock "0:00:07"]

1. b3 {[%clk 0:03:00]}  e5 {[%clk 0:02:59]} 2. Bb2 {[%clk 0:03:00]}  Nc6 {[%clk 0:03:00]} 3. e3 {[%clk 0:03:01]}  Nf6 {[%clk 0:03:00]} 4. Nf3 {[%clk 0:02:58]}  Bd6 {[%clk 0:03:00]} 5. d4 {[%clk 0:02:57]}  e4 {[%clk 0:02:54]} 6. Nfd2 {[%clk 0:02:56]}  O-O {[%clk 0:02:54]} 7. c4 {[%clk 0:02:53]}  Re8 {[%clk 0:02:50]} 8. Nc3 {[%clk 0:02:47]}  Bb4 {[%clk 0:02:31]} 9. d5 {[%clk 0:02:45]}  Ne5 {[%clk 0:02:22]} 10. Qc2 {[%clk 0:02:45]}  d6 {[%clk 0:02:12]} 11. a3 {[%clk 0:02:06]}  Ba5 {[%clk 0:01:34]} 12. b4 {[%clk 0:01:35]}  Bb6 {[%clk 0:01:25]} 13. Ncxe4 {[%clk 0:01:23]}  Nxe4 {[%clk 0:01:13]} 14. Qxe4 {[%clk 0:01:24]}  Ng4 {[%clk 0:01:07]} 15. Qf4 {[%clk 0:00:21]}  Nxe3 {[%clk 0:01:00]} 16. fxe3 {[%clk 0:00:20]}  Bxe3 {[%clk 0:01:00]} 17. Qf3 {[%clk 0:00:12]}  Bd4+ {[%clk 0:00:57]} 18. Kd1 {[%clk 0:00:13]}  Bxb2 {[%clk 0:00:57]} 19. Rb1 {[%clk 0:00:14]}  Bd4 {[%clk 0:00:49]} 20. Bd3 {[%clk 0:00:13]}  Qh4 {[%clk 0:00:47]} 21. Kc2 {[%clk 0:00:12]}  Bd7 {[%clk 0:00:42]} 22. Rbf1 {[%clk 0:00:10]}  Re7 {[%clk 0:00:34]} 23. g3 {[%clk 0:00:10]}  Ba4+ {[%clk 0:00:29]} 24. Kc1 {[%clk 0:00:09]}  Qh6 {[%clk 0:00:28]} 25. Qf4 {[%clk 0:00:04]}  Qxf4 {[%clk 0:00:18]} 26. Rxf4 {[%clk 0:00:04]}  Be3 {[%clk 0:00:18]} 27. Rf3 {[%clk 0:00:05]}  Bd7 {[%clk 0:00:17]} 28. h3 {[%clk 0:00:05]}  a5 {[%clk 0:00:16]} 29. b5 {[%clk 0:00:05]}  a4 {[%clk 0:00:16]} 30. g4 {[%clk 0:00:04]}  Bc5 {[%clk 0:00:15]} 31. Kb2 {[%clk 0:00:04]}  Rae8 {[%clk 0:00:15]} 32. Rhf1 {[%clk 0:00:04]}  Bd4+ {[%clk 0:00:15]} 33. Kc2 {[%clk 0:00:04]}  f6 {[%clk 0:00:16]} 34. Rf4 {[%clk 0:00:04]}  Bc5 {[%clk 0:00:16]} 35. Ne4 {[%clk 0:00:03]}  Bxa3 {[%clk 0:00:15]} 36. Ra1 {[%clk 0:00:03]}  Bc5 {[%clk 0:00:14]} 37. Nxc5 {[%clk 0:00:03]}  dxc5 {[%clk 0:00:15]} 38. Rxa4 {[%clk 0:00:04]}  Re3 {[%clk 0:00:15]} 39. Ra7 {[%clk 0:00:04]}  Bc8 {[%clk 0:00:16]} 40. Ra8 {[%clk 0:00:03]}  Kf8 {[%clk 0:00:12]} 41. h4 {[%clk 0:00:02]}  Rxd3 {[%clk 0:00:07]} 42. Kxd3 {[%clk 0:00:01]}  Bf5+ {[%clk 0:00:08]} 43. Rxf5 {[%clk 0:00:02]}  Rxa8 {[%clk 0:00:08]} 44. g5 {[%clk 0:00:03]}  Kf7 {[%clk 0:00:09]} 45. gxf6 {[%clk 0:00:04]}  gxf6 {[%clk 0:00:10]} 46. Rf1 {[%clk 0:00:03]}  Ra3+ {[%clk 0:00:10]} 47. Ke4 {[%clk 0:00:04]}  Rc3 {[%clk 0:00:10]} 48. Kf5 {[%clk 0:00:04]}  Rxc4 {[%clk 0:00:11]} 49. Ra1 {[%clk 0:00:03]}  Rxh4 {[%clk 0:00:10]} 50. Ra7 {[%clk 0:00:04]}  Rh5+ {[%clk 0:00:11]} 51. Ke4 {[%clk 0:00:04]}  Re5+ {[%clk 0:00:11]} 52. Kf4 {[%clk 0:00:04]}  Rxd5 {[%clk 0:00:11]} 53. Rxb7 {[%clk 0:00:05]}  Kg6 {[%clk 0:00:11]} 54. Rxc7 {[%clk 0:00:05]}  c4 {[%clk 0:00:12]} 55. b6 {[%clk 0:00:05]}  Rb5 {[%clk 0:00:12]} 56. b7 {[%clk 0:00:05]}  c3 {[%clk 0:00:12]} 57. Ke3 {[%clk 0:00:06]}  c2 {[%clk 0:00:10]} 58. Kd2 {[%clk 0:00:06]}  h5 {[%clk 0:00:10]} 59. Kxc2 {[%clk 0:00:06]}  h4 {[%clk 0:00:11]} 60. Kd2 {[%clk 0:00:04]}  Kg5 {[%clk 0:00:10]} 61. Rc5+ {[%clk 0:00:04]}  Rxc5 {[%clk 0:00:09]} 62. b8=Q {[%clk 0:00:04]}  Re5 {[%clk 0:00:10]} 63. Qg8+ {[%clk 0:00:04]}  Kf4 {[%clk 0:00:10]} 64. Qh7 {[%clk 0:00:05]}  Kg4 {[%clk 0:00:09]} 65. Qg7+ {[%clk 0:00:05]}  Kf5 {[%clk 0:00:09]} 66. Qh6 {[%clk 0:00:04]}  Re4 {[%clk 0:00:08]} 67. Kd3 {[%clk 0:00:04]}  Rg4 {[%clk 0:00:08]} 68. Qh5+ {[%clk 0:00:04]}  Kf4 {[%clk 0:00:08]} 69. Qh6+ {[%clk 0:00:03]}  Kf5 {[%clk 0:00:08]} 70. Qh7+ {[%clk 0:00:04]}  Kf4 {[%clk 0:00:08]} 71. Qe4+ {[%clk 0:00:04]}  Kg5 {[%clk 0:00:08]} 72. Qe3+ {[%clk 0:00:03]}  Kg6 {[%clk 0:00:07]} 73. Qe8+ {[%clk 0:00:02]}  Kf5 {[%clk 0:00:07]} 74. Ke2 {[%clk 0:00:02]}  Re4+ {[%clk 0:00:07]} 0-1


[Site "https://www.chess.com"]

[Event "Titled Tuesday Blitz May 03 Early 2022"]
[White "Srihari L R"]
[Black "Kozak, Adam"]
[WhiteFideId "46617116"]
[BlackFideId "753246"]
[WhiteElo "2121"]
[BlackElo "2459"]
[Result "1-0"]
[Round "05"]
[TimeControl "180+1"]
[Date "2022.05.03"]
[WhiteClock "0:00:23"]
[BlackClock "0:00:12"]

1. d4 {[%clk 0:03:00]}  c5 {[%clk 0:02:13]} 2. d5 {[%clk 0:02:49]}  Nf6 {[%clk 0:02:05]} 3. c4 {[%clk 0:02:49]}  b5 {[%clk 0:01:57]} 4. cxb5 {[%clk 0:02:49]}  a6 {[%clk 0:01:57]} 5. bxa6 {[%clk 0:02:49]}  g6 {[%clk 0:01:58]} 6. Nc3 {[%clk 0:02:49]}  Bg7 {[%clk 0:01:58]} 7. g3 {[%clk 0:02:49]}  O-O {[%clk 0:01:58]} 8. Bg2 {[%clk 0:02:50]}  d6 {[%clk 0:01:57]} 9. Nf3 {[%clk 0:02:50]}  Qa5 {[%clk 0:01:55]} 10. O-O {[%clk 0:02:37]}  Bxa6 {[%clk 0:01:55]} 11. Bd2 {[%clk 0:02:31]}  Nbd7 {[%clk 0:01:54]} 12. Rb1 {[%clk 0:02:20]}  Rfb8 {[%clk 0:01:54]} 13. b3 {[%clk 0:02:19]}  Ng4 {[%clk 0:01:47]} 14. Qc2 {[%clk 0:02:15]}  Nge5 {[%clk 0:01:47]} 15. Nxe5 {[%clk 0:02:04]}  Nxe5 {[%clk 0:01:48]} 16. Rfe1 {[%clk 0:02:05]}  Nd7 {[%clk 0:01:34]} 17. h3 {[%clk 0:01:50]}  Bb7 {[%clk 0:01:29]} 18. a4 {[%clk 0:01:48]}  Ba6 {[%clk 0:01:28]} 19. Kh2 {[%clk 0:01:44]}  Qd8 {[%clk 0:01:25]} 20. f4 {[%clk 0:01:40]}  Rb6 {[%clk 0:01:04]} 21. e4 {[%clk 0:01:38]}  Bc8 {[%clk 0:01:03]} 22. Nb5 {[%clk 0:01:35]}  Nb8 {[%clk 0:01:01]} 23. Na3 {[%clk 0:01:34]}  Na6 {[%clk 0:00:58]} 24. Ba5 {[%clk 0:01:30]}  Nb4 {[%clk 0:00:47]} 25. Bxb6 {[%clk 0:01:29]}  Qxb6 {[%clk 0:00:48]} 26. Qd2 {[%clk 0:01:29]}  Ba6 {[%clk 0:00:47]} 27. Bf1 {[%clk 0:01:29]}  Bb7 {[%clk 0:00:47]} 28. Nc4 {[%clk 0:01:27]}  Qc7 {[%clk 0:00:47]} 29. Bg2 {[%clk 0:01:28]}  Rd8 {[%clk 0:00:47]} 30. Rbd1 {[%clk 0:01:27]}  Ba6 {[%clk 0:00:47]} 31. e5 {[%clk 0:01:25]}  Bxc4 {[%clk 0:00:46]} 32. bxc4 {[%clk 0:01:25]}  Qa5 {[%clk 0:00:47]} 33. Re2 {[%clk 0:01:10]}  Qxa4 {[%clk 0:00:46]} 34. Rde1 {[%clk 0:01:10]}  Qa8 {[%clk 0:00:26]} 35. h4 {[%clk 0:01:06]}  Qa6 {[%clk 0:00:23]} 36. exd6 {[%clk 0:01:01]}  exd6 {[%clk 0:00:23]} 37. Re8+ {[%clk 0:01:01]}  Rxe8 {[%clk 0:00:23]} 38. Rxe8+ {[%clk 0:01:02]}  Bf8 {[%clk 0:00:24]} 39. Qc3 {[%clk 0:00:54]}  Qb7 {[%clk 0:00:23]} 40. Qf6 {[%clk 0:00:53]}  Qd7 {[%clk 0:00:22]} 41. Rd8 {[%clk 0:00:50]}  Qc7 {[%clk 0:00:23]} 42. Bh3 {[%clk 0:00:47]}  Nd3 {[%clk 0:00:20]} 43. Rc8 {[%clk 0:00:45]}  Qb6 {[%clk 0:00:17]} 44. Qe7 {[%clk 0:00:35]}  Qb2+ {[%clk 0:00:17]} 45. Bg2 {[%clk 0:00:34]}  Qg7 {[%clk 0:00:17]} 46. Qxd6 {[%clk 0:00:32]}  h5 {[%clk 0:00:17]} 47. Qd8 {[%clk 0:00:32]}  Ne1 {[%clk 0:00:17]} 48. d6 {[%clk 0:00:31]}  Kh7 {[%clk 0:00:13]} 49. Qxf8 {[%clk 0:00:30]}  Qb2 {[%clk 0:00:14]} 50. Qg8+ {[%clk 0:00:28]}  Kh6 {[%clk 0:00:15]} 51. Qh8+ {[%clk 0:00:28]}  Qxh8 {[%clk 0:00:14]} 52. Rxh8+ {[%clk 0:00:29]}  Kg7 {[%clk 0:00:10]} 53. d7 {[%clk 0:00:29]}  Kxh8 {[%clk 0:00:10]} 54. d8=Q+ {[%clk 0:00:29]}  Kg7 {[%clk 0:00:10]} 55. Be4 {[%clk 0:00:27]}  Nc2 {[%clk 0:00:11]} 56. Bxc2 {[%clk 0:00:27]}  f5 {[%clk 0:00:12]} 57. Qe7+ {[%clk 0:00:26]}  Kh6 {[%clk 0:00:12]} 58. Qf7 {[%clk 0:00:23]}  g5 {[%clk 0:00:12]} 59. fxg5# {[%clk 0:00:23]} 1-0


[Site "https://www.chess.com"]

[Event "Titled Tuesday Blitz May 03 Early 2022"]
[White "Stribuk, Artiom"]
[Black "Tatarinov, Dmitry"]
[WhiteFideId "13515659"]
[BlackFideId "24160067"]
[WhiteElo "2259"]
[BlackElo "2302"]
[Result "1-0"]
[Round "05"]
[TimeControl "180+1"]
[Date "2022.05.03"]
[WhiteClock "0:00:05"]
[BlackClock "0:00:10"]

1. d4 {[%clk 0:02:30]}  Nf6 {[%clk 0:02:59]} 2. c4 {[%clk 0:02:31]}  e6 {[%clk 0:02:59]} 3. Nc3 {[%clk 0:02:31]}  d5 {[%clk 0:03:00]} 4. cxd5 {[%clk 0:02:31]}  exd5 {[%clk 0:03:00]} 5. Bg5 {[%clk 0:02:31]}  Be7 {[%clk 0:03:00]} 6. e3 {[%clk 0:02:30]}  c6 {[%clk 0:03:00]} 7. Bd3 {[%clk 0:02:30]}  O-O {[%clk 0:02:57]} 8. Qc2 {[%clk 0:02:29]}  Nbd7 {[%clk 0:02:52]} 9. Nf3 {[%clk 0:02:29]}  Re8 {[%clk 0:02:51]} 10. O-O {[%clk 0:02:29]}  Nf8 {[%clk 0:02:52]} 11. h3 {[%clk 0:02:26]}  g6 {[%clk 0:02:49]} 12. Ne5 {[%clk 0:02:26]}  Ne6 {[%clk 0:02:49]} 13. f4 {[%clk 0:02:26]}  Nd7 {[%clk 0:02:28]} 14. Bh6 {[%clk 0:02:14]}  Ng7 {[%clk 0:02:06]} 15. Rae1 {[%clk 0:01:44]}  Nxe5 {[%clk 0:02:02]} 16. fxe5 {[%clk 0:01:43]}  Nf5 {[%clk 0:02:02]} 17. Bf4 {[%clk 0:00:50]}  Be6 {[%clk 0:02:00]} 18. g4 {[%clk 0:00:45]}  Ng7 {[%clk 0:01:55]} 19. Kh2 {[%clk 0:00:40]}  Rc8 {[%clk 0:01:55]} 20. Qf2 {[%clk 0:00:37]}  Bh4 {[%clk 0:01:53]} 21. Bg3 {[%clk 0:00:37]}  Bxg3+ {[%clk 0:01:53]} 22. Qxg3 {[%clk 0:00:37]}  a6 {[%clk 0:01:49]} 23. Rf6 {[%clk 0:00:37]}  c5 {[%clk 0:01:48]} 24. Ref1 {[%clk 0:00:37]}  b5 {[%clk 0:01:47]} 25. Ne2 {[%clk 0:00:35]}  c4 {[%clk 0:01:42]} 26. Bb1 {[%clk 0:00:34]}  b4 {[%clk 0:01:42]} 27. Nf4 {[%clk 0:00:34]}  c3 {[%clk 0:01:40]} 28. bxc3 {[%clk 0:00:34]}  Rxc3 {[%clk 0:01:41]} 29. Nxe6 {[%clk 0:00:30]}  fxe6 {[%clk 0:01:36]} 30. Qf4 {[%clk 0:00:27]}  Rc7 {[%clk 0:01:20]} 31. Qh6 {[%clk 0:00:25]}  a5 {[%clk 0:01:02]} 32. h4 {[%clk 0:00:25]}  a4 {[%clk 0:01:01]} 33. h5 {[%clk 0:00:25]}  Nf5 {[%clk 0:00:27]} 34. gxf5 {[%clk 0:00:24]}  gxf5 {[%clk 0:00:27]} 35. Rg1+ {[%clk 0:00:23]}  Kh8 {[%clk 0:00:27]} 36. Kh3 {[%clk 0:00:16]}  Rce7 {[%clk 0:00:25]} 37. Rfg6 {[%clk 0:00:12]}  Qc7 {[%clk 0:00:13]} 38. R6g2 {[%clk 0:00:09]}  Rf7 {[%clk 0:00:09]} 39. Bc2 {[%clk 0:00:09]}  b3 {[%clk 0:00:06]} 40. axb3 {[%clk 0:00:09]}  a3 {[%clk 0:00:07]} 41. Bb1 {[%clk 0:00:09]}  Qc3 {[%clk 0:00:05]} 42. Kh2 {[%clk 0:00:09]}  Qc7 {[%clk 0:00:02]} 43. Qxe6 {[%clk 0:00:07]}  Qe7 {[%clk 0:00:03]} 44. Qxe7 {[%clk 0:00:07]}  Rfxe7 {[%clk 0:00:04]} 45. Ra2 {[%clk 0:00:07]}  Rf8 {[%clk 0:00:05]} 46. Rxa3 {[%clk 0:00:07]}  f4 {[%clk 0:00:06]} 47. e4 {[%clk 0:00:07]}  f3 {[%clk 0:00:06]} 48. Rf1 {[%clk 0:00:07]}  Rg7 {[%clk 0:00:06]} 49. Ra2 {[%clk 0:00:07]}  Rg5 {[%clk 0:00:06]} 50. exd5 {[%clk 0:00:06]}  Rf4 {[%clk 0:00:05]} 51. Kh1 {[%clk 0:00:05]}  Rxh5+ {[%clk 0:00:04]} 52. Rh2 {[%clk 0:00:06]}  Rg5 {[%clk 0:00:05]} 53. d6 {[%clk 0:00:05]}  Kg8 {[%clk 0:00:06]} 54. d7 {[%clk 0:00:05]}  Rxd4 {[%clk 0:00:06]} 55. e6 {[%clk 0:00:06]}  Re5 {[%clk 0:00:07]} 56. Rxh7 {[%clk 0:00:05]}  Rxe6 {[%clk 0:00:07]} 57. Rg1+ {[%clk 0:00:05]}  Kf8 {[%clk 0:00:07]} 58. Rh8+ {[%clk 0:00:06]}  Ke7 {[%clk 0:00:08]} 59. Rg7+ {[%clk 0:00:06]}  Kf6 {[%clk 0:00:08]} 60. d8=Q+ {[%clk 0:00:04]}  Rxd8 {[%clk 0:00:08]} 61. Rxd8 {[%clk 0:00:05]}  Kxg7 {[%clk 0:00:09]} 62. Rd1 {[%clk 0:00:05]}  Re1+ {[%clk 0:00:10]} 63. Rxe1 {[%clk 0:00:05]} 1-0


[Site "https://www.chess.com"]

[Event "Titled Tuesday Blitz May 03 Early 2022"]
[White "Taboas Rodriguez, Daniel"]
[Black "Djordjevic, Vuk"]
[WhiteFideId "2208466"]
[BlackFideId "902098"]
[WhiteElo "2429"]
[BlackElo "2496"]
[Result "0-1"]
[Round "05"]
[TimeControl "180+1"]
[Date "2022.05.03"]
[WhiteClock "0:00:02"]
[BlackClock "0:00:07"]

1. d4 {[%clk 0:02:59]}  Nf6 {[%clk 0:02:59]} 2. Nf3 {[%clk 0:02:59]}  e6 {[%clk 0:02:59]} 3. c4 {[%clk 0:03:00]}  b6 {[%clk 0:02:59]} 4. Nc3 {[%clk 0:02:59]}  Bb7 {[%clk 0:02:59]} 5. Bg5 {[%clk 0:02:59]}  d5 {[%clk 0:02:59]} 6. cxd5 {[%clk 0:02:58]}  exd5 {[%clk 0:03:00]} 7. e3 {[%clk 0:02:58]}  Be7 {[%clk 0:03:00]} 8. Bb5+ {[%clk 0:02:56]}  c6 {[%clk 0:03:00]} 9. Bd3 {[%clk 0:02:57]}  O-O {[%clk 0:03:00]} 10. O-O {[%clk 0:02:57]}  Nbd7 {[%clk 0:02:57]} 11. Qe2 {[%clk 0:02:57]}  Re8 {[%clk 0:02:55]} 12. Rac1 {[%clk 0:02:56]}  a5 {[%clk 0:02:40]} 13. Rfd1 {[%clk 0:02:52]}  b5 {[%clk 0:02:37]} 14. h3 {[%clk 0:02:50]}  Nb6 {[%clk 0:02:32]} 15. Ne5 {[%clk 0:02:49]}  h6 {[%clk 0:02:29]} 16. Bf4 {[%clk 0:02:48]}  Nfd7 {[%clk 0:02:26]} 17. Nxd7 {[%clk 0:02:40]}  Qxd7 {[%clk 0:02:25]} 18. Nxb5 {[%clk 0:02:36]}  Rec8 {[%clk 0:02:02]} 19. Nc3 {[%clk 0:02:32]}  c5 {[%clk 0:02:01]} 20. dxc5 {[%clk 0:02:22]}  Bxc5 {[%clk 0:02:02]} 21. Qh5 {[%clk 0:02:19]}  Qe7 {[%clk 0:01:36]} 22. Qf5 {[%clk 0:02:02]}  g6 {[%clk 0:01:36]} 23. Qg4 {[%clk 0:02:01]}  Kg7 {[%clk 0:01:30]} 24. Qg3 {[%clk 0:01:53]}  Nd7 {[%clk 0:01:19]} 25. Ne2 {[%clk 0:01:42]}  Qe6 {[%clk 0:00:50]} 26. Nd4 {[%clk 0:01:37]}  Bxd4 {[%clk 0:00:49]} 27. exd4 {[%clk 0:01:38]}  Rxc1 {[%clk 0:00:48]} 28. Rxc1 {[%clk 0:01:39]}  Ba6 {[%clk 0:00:44]} 29. Bxa6 {[%clk 0:01:17]}  Rxa6 {[%clk 0:00:45]} 30. Be5+ {[%clk 0:01:06]}  Kh7 {[%clk 0:00:40]} 31. Rc7 {[%clk 0:01:00]}  Rc6 {[%clk 0:00:39]} 32. Rxc6 {[%clk 0:00:50]}  Qxc6 {[%clk 0:00:40]} 33. Qf4 {[%clk 0:00:49]}  Qe6 {[%clk 0:00:28]} 34. Kf1 {[%clk 0:00:45]}  a4 {[%clk 0:00:23]} 35. Qe3 {[%clk 0:00:40]}  Qa6+ {[%clk 0:00:22]} 36. Qe2 {[%clk 0:00:38]}  Qc6 {[%clk 0:00:21]} 37. Bf4 {[%clk 0:00:37]}  g5 {[%clk 0:00:15]} 38. Be3 {[%clk 0:00:30]}  Nf6 {[%clk 0:00:15]} 39. Kg1 {[%clk 0:00:27]}  Ne4 {[%clk 0:00:14]} 40. Qd3 {[%clk 0:00:24]}  f5 {[%clk 0:00:13]} 41. f3 {[%clk 0:00:20]}  Nd6 {[%clk 0:00:13]} 42. g4 {[%clk 0:00:20]}  Kg6 {[%clk 0:00:13]} 43. Bd2 {[%clk 0:00:15]}  Qc4 {[%clk 0:00:11]} 44. Qxc4 {[%clk 0:00:15]}  dxc4 {[%clk 0:00:09]} 45. Kf2 {[%clk 0:00:15]}  Nb5 {[%clk 0:00:09]} 46. Bc3 {[%clk 0:00:14]}  h5 {[%clk 0:00:09]} 47. Ke2 {[%clk 0:00:13]}  Nc7 {[%clk 0:00:08]} 48. Kd2 {[%clk 0:00:11]}  Nd5 {[%clk 0:00:08]} 49. Kc2 {[%clk 0:00:11]}  Nf4 {[%clk 0:00:08]} 50. Bd2 {[%clk 0:00:09]}  Nxh3 {[%clk 0:00:08]} 51. gxh5+ {[%clk 0:00:09]}  Kxh5 {[%clk 0:00:07]} 52. Kc3 {[%clk 0:00:10]}  Ng1 {[%clk 0:00:06]} 53. d5 {[%clk 0:00:09]}  Nxf3 {[%clk 0:00:06]} 54. d6 {[%clk 0:00:10]}  Ne5 {[%clk 0:00:05]} 55. Kd4 {[%clk 0:00:07]}  Nf7 {[%clk 0:00:06]} 56. d7 {[%clk 0:00:06]}  f4 {[%clk 0:00:06]} 57. Kd5 {[%clk 0:00:05]}  f3 {[%clk 0:00:06]} 58. Be3 {[%clk 0:00:06]}  g4 {[%clk 0:00:06]} 59. Bb6 {[%clk 0:00:06]}  g3 {[%clk 0:00:04]} 60. Ke6 {[%clk 0:00:06]}  Nd8+ {[%clk 0:00:03]} 61. Bxd8 {[%clk 0:00:06]}  f2 {[%clk 0:00:03]} 62. Bf6 {[%clk 0:00:07]}  f1=Q {[%clk 0:00:04]} 63. d8=Q {[%clk 0:00:07]}  Qe2+ {[%clk 0:00:04]} 64. Be5 {[%clk 0:00:07]}  Qg4+ {[%clk 0:00:04]} 65. Kf7 {[%clk 0:00:03]}  Qf5+ {[%clk 0:00:04]} 66. Bf6 {[%clk 0:00:03]}  g2 {[%clk 0:00:03]} 67. Qh8+ {[%clk 0:00:02]}  Kg4 {[%clk 0:00:03]} 68. Qh4+ {[%clk 0:00:02]}  Kf3 {[%clk 0:00:03]} 69. Qe1 {[%clk 0:00:02]}  Qd5+ {[%clk 0:00:03]} 70. Kg6 {[%clk 0:00:02]}  Qd3+ {[%clk 0:00:03]} 71. Kg5 {[%clk 0:00:02]}  Qe3+ {[%clk 0:00:03]} 72. Qxe3+ {[%clk 0:00:02]}  Kxe3 {[%clk 0:00:04]} 73. Bd8 {[%clk 0:00:02]}  Kd3 {[%clk 0:00:04]} 74. Bb6 {[%clk 0:00:02]}  Kc2 {[%clk 0:00:05]} 75. Kf4 {[%clk 0:00:01]}  Kxb2 {[%clk 0:00:05]} 76. Kf3 {[%clk 0:00:01]}  c3 {[%clk 0:00:05]} 77. Kxg2 {[%clk 0:00:01]}  c2 {[%clk 0:00:06]} 78. Be3 {[%clk 0:00:01]}  Kxa2 {[%clk 0:00:06]} 79. Kf3 {[%clk 0:00:02]}  Kb1 {[%clk 0:00:06]} 80. Ke2 {[%clk 0:00:03]}  a3 {[%clk 0:00:06]} 81. Kd3 {[%clk 0:00:03]}  a2 {[%clk 0:00:07]} 82. Bd4 {[%clk 0:00:02]}  c1=Q {[%clk 0:00:07]} 0-1


[Site "https://www.chess.com"]

[Event "Titled Tuesday Blitz May 03 Early 2022"]
[White "Vokarev, Sergey"]
[Black "Murtazin, Bulat"]
[WhiteFideId "4119711"]
[BlackFideId "24151351"]
[WhiteElo "2343"]
[BlackElo "2329"]
[Result "1-0"]
[Round "05"]
[TimeControl "180+1"]
[Date "2022.05.03"]
[WhiteClock "0:01:25"]
[BlackClock "0:00:01"]

1. e4 {[%clk 0:03:00]}  c6 {[%clk 0:02:56]} 2. d4 {[%clk 0:02:59]}  d5 {[%clk 0:02:56]} 3. Nd2 {[%clk 0:03:00]}  dxe4 {[%clk 0:02:55]} 4. Nxe4 {[%clk 0:03:01]}  Bf5 {[%clk 0:02:56]} 5. Nc5 {[%clk 0:03:01]}  e5 {[%clk 0:02:51]} 6. Nxb7 {[%clk 0:03:00]}  Qxd4 {[%clk 0:02:42]} 7. Qxd4 {[%clk 0:02:53]}  exd4 {[%clk 0:02:43]} 8. Nf3 {[%clk 0:02:53]}  c5 {[%clk 0:02:02]} 9. Bd3 {[%clk 0:02:40]}  Be6 {[%clk 0:01:52]} 10. Be4 {[%clk 0:02:38]}  Nf6 {[%clk 0:01:35]} 11. Nd6+ {[%clk 0:02:28]}  Bxd6 {[%clk 0:01:34]} 12. Bxa8 {[%clk 0:02:29]}  Kd7 {[%clk 0:01:30]} 13. Ng5 {[%clk 0:02:14]}  Bc4 {[%clk 0:01:03]} 14. b3 {[%clk 0:02:06]}  Re8+ {[%clk 0:00:58]} 15. Be3 {[%clk 0:01:51]}  Bb5 {[%clk 0:00:29]} 16. O-O-O {[%clk 0:01:47]}  dxe3 {[%clk 0:00:28]} 17. Nxf7 {[%clk 0:01:47]}  e2 {[%clk 0:00:22]} 18. Rxd6+ {[%clk 0:01:42]}  Ke7 {[%clk 0:00:22]} 19. Re1 {[%clk 0:01:39]}  Kxf7 {[%clk 0:00:21]} 20. c4 {[%clk 0:01:39]}  Bd7 {[%clk 0:00:18]} 21. Rd2 {[%clk 0:01:37]}  Bc6 {[%clk 0:00:16]} 22. Bxc6 {[%clk 0:01:36]}  Nxc6 {[%clk 0:00:17]} 23. Rexe2 {[%clk 0:01:34]}  Rb8 {[%clk 0:00:13]} 24. f3 {[%clk 0:01:31]}  Nd4 {[%clk 0:00:13]} 25. Re5 {[%clk 0:01:30]}  Nd7 {[%clk 0:00:12]} 26. Rd5 {[%clk 0:01:28]}  Rb7 {[%clk 0:00:08]} 27. b4 {[%clk 0:01:28]}  Ke6 {[%clk 0:00:02]} 28. bxc5 {[%clk 0:01:25]}  Nc6 {[%clk 0:00:02]} 29. Rd6+ {[%clk 0:01:25]}  Ke7 {[%clk 0:00:01]} 30. Rxc6 {[%clk 0:01:25]} 1-0


[Site "https://www.chess.com"]

[Event "Titled Tuesday Blitz May 03 Early 2022"]
[White "Vusatiuk, Vladimir"]
[Black "Yuan, Qingyu"]
[WhiteFideId "14118610"]
[BlackFideId "8609772"]
[WhiteElo "2522"]
[BlackElo "2803"]
[Result "0-1"]
[Round "05"]
[TimeControl "180+1"]
[Date "2022.05.03"]
[WhiteClock "0:00:09"]
[BlackClock "0:00:11"]

1. d4 {[%clk 0:03:00]}  d5 {[%clk 0:02:59]} 2. c4 {[%clk 0:03:01]}  e6 {[%clk 0:03:00]} 3. Nc3 {[%clk 0:03:01]}  Nf6 {[%clk 0:02:59]} 4. cxd5 {[%clk 0:03:01]}  exd5 {[%clk 0:03:00]} 5. Bg5 {[%clk 0:03:01]}  c6 {[%clk 0:03:00]} 6. e3 {[%clk 0:03:02]}  h6 {[%clk 0:03:00]} 7. Bh4 {[%clk 0:03:02]}  Be7 {[%clk 0:03:01]} 8. Bd3 {[%clk 0:03:01]}  O-O {[%clk 0:03:01]} 9. Qc2 {[%clk 0:03:01]}  Re8 {[%clk 0:03:01]} 10. Nf3 {[%clk 0:03:00]}  Ne4 {[%clk 0:03:01]} 11. Bxe7 {[%clk 0:02:58]}  Qxe7 {[%clk 0:03:02]} 12. Bxe4 {[%clk 0:02:58]}  dxe4 {[%clk 0:03:01]} 13. Nd2 {[%clk 0:02:59]}  f5 {[%clk 0:03:02]} 14. O-O {[%clk 0:02:43]}  Be6 {[%clk 0:03:02]} 15. Rab1 {[%clk 0:02:37]}  Nd7 {[%clk 0:02:57]} 16. b4 {[%clk 0:02:37]}  b5 {[%clk 0:02:44]} 17. a4 {[%clk 0:02:34]}  a6 {[%clk 0:02:31]} 18. d5 {[%clk 0:01:42]}  Bxd5 {[%clk 0:02:16]} 19. Nxd5 {[%clk 0:01:41]}  cxd5 {[%clk 0:02:17]} 20. axb5 {[%clk 0:01:41]}  axb5 {[%clk 0:02:16]} 21. Qc6 {[%clk 0:01:35]}  Qe6 {[%clk 0:01:52]} 22. Qxb5 {[%clk 0:01:33]}  Reb8 {[%clk 0:01:52]} 23. Qe2 {[%clk 0:01:30]}  Ra2 {[%clk 0:01:51]} 24. Rfc1 {[%clk 0:01:22]}  Ne5 {[%clk 0:01:50]} 25. Qd1 {[%clk 0:01:17]}  Nd3 {[%clk 0:01:45]} 26. Rc2 {[%clk 0:01:17]}  Ra4 {[%clk 0:01:35]} 27. b5 {[%clk 0:01:15]}  Ra5 {[%clk 0:01:30]} 28. Rc6 {[%clk 0:00:57]}  Qd7 {[%clk 0:01:14]} 29. g3 {[%clk 0:00:34]}  Raxb5 {[%clk 0:01:12]} 30. Rxb5 {[%clk 0:00:35]}  Rxb5 {[%clk 0:01:13]} 31. Ra6 {[%clk 0:00:34]}  Rb2 {[%clk 0:01:09]} 32. Qh5 {[%clk 0:00:20]}  Rxd2 {[%clk 0:00:49]} 33. Qg6 {[%clk 0:00:20]}  Qc8 {[%clk 0:00:40]} 34. Rc6 {[%clk 0:00:19]}  Qf8 {[%clk 0:00:27]} 35. Qe6+ {[%clk 0:00:17]}  Kh7 {[%clk 0:00:26]} 36. Rc8 {[%clk 0:00:18]}  Qf6 {[%clk 0:00:15]} 37. Qg8+ {[%clk 0:00:18]}  Kg6 {[%clk 0:00:15]} 38. Qe8+ {[%clk 0:00:18]}  Kg5 {[%clk 0:00:15]} 39. Kg2 {[%clk 0:00:09]}  Rxf2+ {[%clk 0:00:10]} 40. Kh3 {[%clk 0:00:09]}  Re2 {[%clk 0:00:09]} 41. Rc6 {[%clk 0:00:07]}  Nf2+ {[%clk 0:00:09]} 42. Kg2 {[%clk 0:00:08]}  Ng4+ {[%clk 0:00:10]} 43. Kf1 {[%clk 0:00:09]}  Rf2+ {[%clk 0:00:10]} 44. Ke1 {[%clk 0:00:09]}  Qa1+ {[%clk 0:00:10]} 45. Rc1 {[%clk 0:00:09]}  Qxc1# {[%clk 0:00:11]} 0-1


[Site "https://www.chess.com"]